{"text_format":"1","workbook":"xlsx","n_sheets":2,"sheets":["Valutaomrekeningen","Omrekeningskoersen"],"not_rendered":{"charts":0,"images":1,"macros":1,"external_links":0,"defined_names":7,"comments":0,"pivot_tables":0},"unopened":[],"bounds":{"document_bytes":16777216,"sheet_cells":100000,"rows_first":2000,"rows_last":500,"rows_between":2000,"halvings":0,"cell_chars":16384,"cell_head_chars":4096},"cells_cut":0,"cells_raw":0,"read":"whole","date_system":"1900"}

{"sheet":"Valutaomrekeningen","index":0,"n_rows":10,"n_cols":5,"rows_kept":10,"cut":false,"hidden":false,"merged":[]}
[]
[]
[]
[]
[null,null,null,41,6000]
[]
[]
[]
[]
[null,null,null,27,{"$f":"IFERROR(IF(OR(VanValuta=0,NaarValuta=0),\"\",VanBedrag/OFFSET(Valutas,VanValuta-1,3,1,1)*OFFSET(Valutas,NaarValuta-1,3,1,1)),\"\")","v":36186}]

{"sheet":"Omrekeningskoersen","index":1,"n_rows":59,"n_cols":5,"rows_kept":59,"cut":false,"hidden":false,"merged":[]}
["Omrekeningskoersen"]
["De gegevens op dit werkblad zijn afkomstig van een MSN Money-webquery. Deze worden bijgewerkt wanneer u op de knop Omrekeningskoersen bijwerken klikt op het blad Valutaomrekeningen."]
[null,null,"Currency Rates Provided by MSN Money"]
[null,null,"Click here to visit MSN Money"]
[]
[null,"Lijstnaam","Name","In US$","   Per US$"]
[null,{"$f":"IF(ISERROR(FIND(\" to US Dollar\",C7)),C7,LEFT(C7,FIND(\" to US Dollar\",C7)-1))","v":"Argentine Peso"},"Argentine Peso to US Dollar",0.22123999999999999,4.5199999999999996]
[null,{"$f":"IF(ISERROR(FIND(\" to US Dollar\",C8)),C8,LEFT(C8,FIND(\" to US Dollar\",C8)-1))","v":"Australian Dollar"},"Australian Dollar to US Dollar",1.0105999999999999,0.99]
[null,"Bahraini Dinar","Bahraini Dinar to US Dollar",2.6486000000000001,0.378]
[null,"Bolivian Boliviano","Bolivian Boliviano to US Dollar",0.14244999999999999,7.02]
[null,"Brazilian Real","Brazilian Real to US Dollar",0.48055999999999999,2.081]
[null,"British Pound","British Pound to US Dollar",1.5576000000000001,0.64200000000000002]
[null,"Canadian Dollar","Canadian Dollar to US Dollar",0.97611000000000003,1.024]
[null,"Chile Peso","Chile Peso to US Dollar",1.97E-3,506.8]
[null,"Chinese Yuan","Chinese Yuan to US Dollar",0.15706000000000001,6.367]
[null,"Colombian Peso","Colombian Peso to US Dollar",5.5999999999999995E-4,1803]
[null,"Czech Koruna","Czech Koruna to US Dollar",4.8230000000000002E-2,20.733000000000001]
[null,"Danish Krone","Danish Krone to US Dollar",0.16796,5.9539999999999997]
[null,"Euro","Euro to US Dollar",1.2484,0.80100000000000005]
[null,"Egyptian Pound*","Egyptian Pound* to US Dollar",0.16486000000000001,6.0659999999999998]
[null,"Hong Kong Dollar","Hong Kong Dollar to US Dollar",0.12887999999999999,7.7590000000000003]
[null,"Hungarian Forint","Hungarian Forint to US Dollar",4.3499999999999997E-3,229.9]
[null,"Indian Rupee","Indian Rupee to US Dollar",1.754E-2,57.02]
[null,"Indonesia Rupiah","Indonesia Rupiah to US Dollar",1.1E-4,9473]
[null,"Japanese Yen","Japanese Yen to US Dollar",1.2579999999999999E-2,79.48]
[null,"Jordanian Dinar","Jordanian Dinar to US Dollar",1.4124000000000001,0.70799999999999996]
[null,"Kenyan Shilling","Kenyan Shilling to US Dollar",1.187E-2,84.25]
[null,"South Korean Won","South Korean Won to US Dollar",8.7000000000000001E-4,1155]
[null,"Kuwaiti Dinar","Kuwaiti Dinar to US Dollar",3.5606,0.28100000000000003]
[null,"Morocco Dirham","Morocco Dirham to US Dollar",0.11308,8.843]
[null,"Malaysian Ringgit","Malaysian Ringgit to US Dollar",0.31358000000000003,3.1890000000000001]
[null,"Mexican Peso","Mexican Peso to US Dollar",7.3749999999999996E-2,13.558999999999999]
[null,"Norwegian Krone","Norwegian Krone to US Dollar",0.16581000000000001,6.0309999999999997]
[null,"Omani Rial","Omani Rial to US Dollar",2.5966999999999998,0.38500000000000001]
[null,"Peruvian New Sol","Peruvian New Sol to US Dollar",0.37480999999999998,2.6680000000000001]
[null,"Philippine Peso","Philippine Peso to US Dollar",2.3609999999999999E-2,42.36]
[null,"Pakistani Rupee","Pakistani Rupee to US Dollar",1.051E-2,95.15]
[null,"Saudi Riyal","Saudi Riyal to US Dollar",0.26661000000000001,3.7509999999999999]
[null,"Singapore Dollar","Singapore Dollar to US Dollar",0.78347,1.276]
[null,"South African Rand","South African Rand to US Dollar",0.11882,8.4160000000000004]
[null,"Swedish Krona","Swedish Krona to US Dollar",0.14208999999999999,7.0380000000000003]
[null,"Swiss Franc","Swiss Franc to US Dollar",1.0395000000000001,0.96199999999999997]
[null,"Taiwan Dollar","Taiwan Dollar to US Dollar",3.3459999999999997E-2,29.885999999999999]
[null,"Thai Baht","Thai Baht to US Dollar",3.1359999999999999E-2,31.89]
[null,"Tunisian Dinar","Tunisian Dinar to US Dollar",0.62653000000000003,1.5960000000000001]
[null,"Emirati Dirham","Emirati Dirham to US Dollar",0.27221000000000001,3.6739999999999999]
[null,"United States Dollar","United States Dollar",1,1]
[null,"Venezuelan Bolivar","Venezuelan Bolivar to US Dollar",0.23269999999999999,4.2969999999999997]
[]
[]
[]
[null,null,"MSN Money",null,"Microsoft Office Update"]
[null,null,"Discover Investor's tools, columns, and more!",null,"Get the latest from Microsoft Office"]
[null,null,"Privacy"]
[null,null,"Legal"]
[null,null,"Advertise"]
[null,null,"MSN Worldwide"]
[null,null,"About our ads"]
[null,null,"© 2012 Microsoft "]